[Event "Titled Tuesday Blitz June 27 Late 2023"]
[White "Mirzoev, Azer"]
[Black "David, Bogdan-Emanuel"]
[WhiteFideId "13400304"]
[BlackFideId "1229907"]
[WhiteElo "2685"]
[BlackElo "2575"]
[Result "1-0"]
[Round "11"]
[TimeControl "180+2"]
[Date "2023.06.27"]
[WhiteClock "0:00:05"]
[BlackClock "0:00:00"]
[Board "33"]

1. c4 {[%clk 0:03:00]}  g6 {[%clk 0:02:59]} 2. Nc3 {[%clk 0:03:00]}  Bg7 {[%clk 0:03:00]} 3. d4 {[%clk 0:03:00]}  d6 {[%clk 0:03:00]} 4. e4 {[%clk 0:03:00]}  Nd7 {[%clk 0:02:57]} 5. h4 {[%clk 0:02:58]}  e5 {[%clk 0:02:56]} 6. d5 {[%clk 0:02:58]}  h5 {[%clk 0:02:53]} 7. Nf3 {[%clk 0:02:53]}  a5 {[%clk 0:02:52]} 8. Ng5 {[%clk 0:02:51]}  Nc5 {[%clk 0:02:51]} 9. Be3 {[%clk 0:02:47]}  Nh6 {[%clk 0:02:42]} 10. f3 {[%clk 0:02:45]}  f6 {[%clk 0:02:38]} 11. Nh3 {[%clk 0:02:44]}  Nf7 {[%clk 0:02:35]} 12. Qd2 {[%clk 0:02:42]}  Bh6 {[%clk 0:02:28]} 13. O-O-O {[%clk 0:02:41]}  Bxe3 {[%clk 0:02:27]} 14. Qxe3 {[%clk 0:02:42]}  Qe7 {[%clk 0:02:18]} 15. Kb1 {[%clk 0:02:40]}  f5 {[%clk 0:02:15]} 16. Nf2 {[%clk 0:02:37]}  f4 {[%clk 0:02:13]} 17. Qd2 {[%clk 0:02:37]}  Bd7 {[%clk 0:02:10]} 18. Nd3 {[%clk 0:02:35]}  b6 {[%clk 0:02:04]} 19. Rc1 {[%clk 0:02:32]}  Rg8 {[%clk 0:02:01]} 20. Nb5 {[%clk 0:02:21]}  Bxb5 {[%clk 0:01:57]} 21. cxb5 {[%clk 0:02:20]}  g5 {[%clk 0:01:56]} 22. hxg5 {[%clk 0:02:19]}  Rxg5 {[%clk 0:01:56]} 23. b3 {[%clk 0:01:44]}  Qd7 {[%clk 0:01:32]} 24. Nb2 {[%clk 0:01:41]}  Nd8 {[%clk 0:01:12]} 25. Rc3 {[%clk 0:01:34]}  Ndb7 {[%clk 0:01:07]} 26. Qc2 {[%clk 0:01:28]}  Kd8 {[%clk 0:00:55]} 27. a3 {[%clk 0:01:14]}  a4 {[%clk 0:00:54]} 28. b4 {[%clk 0:01:11]}  Nb3 {[%clk 0:00:54]} 29. Ka2 {[%clk 0:00:41]}  Nd4 {[%clk 0:00:48]} 30. Qd3 {[%clk 0:00:41]}  Qg7 {[%clk 0:00:36]} 31. Rh2 {[%clk 0:00:37]}  Kd7 {[%clk 0:00:29]} 32. Rc1 {[%clk 0:00:36]}  Nb3 {[%clk 0:00:25]} 33. Rc6 {[%clk 0:00:31]}  Nd4 {[%clk 0:00:23]} 34. Nd1 {[%clk 0:00:28]}  Kc8 {[%clk 0:00:16]} 35. Rc1 {[%clk 0:00:26]}  Kb8 {[%clk 0:00:16]} 36. Nc3 {[%clk 0:00:25]}  Nb3 {[%clk 0:00:14]} 37. Rb1 {[%clk 0:00:20]}  Nd4 {[%clk 0:00:14]} 38. Qd1 {[%clk 0:00:19]}  Qd7 {[%clk 0:00:14]} 39. Rb2 {[%clk 0:00:15]}  Qe8 {[%clk 0:00:13]} 40. Bd3 {[%clk 0:00:13]}  Qg8 {[%clk 0:00:12]} 41. Qf1 {[%clk 0:00:12]}  Qe8 {[%clk 0:00:12]} 42. Bc4 {[%clk 0:00:11]}  Qg6 {[%clk 0:00:12]} 43. Ne2 {[%clk 0:00:08]}  Nxe2 {[%clk 0:00:10]} 44. Qxe2 {[%clk 0:00:08]}  Ka7 {[%clk 0:00:10]} 45. Qd1 {[%clk 0:00:06]}  Kb8 {[%clk 0:00:10]} 46. Rc2 {[%clk 0:00:06]}  Qg7 {[%clk 0:00:10]} 47. Bf1 {[%clk 0:00:07]}  Nd8 {[%clk 0:00:10]} 48. Qc1 {[%clk 0:00:06]}  Ra7 {[%clk 0:00:10]} 49. Rb2 {[%clk 0:00:07]}  Nf7 {[%clk 0:00:11]} 50. Qd1 {[%clk 0:00:07]}  Nh8 {[%clk 0:00:11]} 51. Rc2 {[%clk 0:00:07]}  Ng6 {[%clk 0:00:11]} 52. Qd3 {[%clk 0:00:07]}  Nf8 {[%clk 0:00:11]} 53. Qd1 {[%clk 0:00:07]}  Nh7 {[%clk 0:00:11]} 54. Rd2 {[%clk 0:00:07]}  Nf6 {[%clk 0:00:11]} 55. Bd3 {[%clk 0:00:07]}  Rg3 {[%clk 0:00:12]} 56. Bc2 {[%clk 0:00:07]}  Qg5 {[%clk 0:00:12]} 57. Bxa4 {[%clk 0:00:07]}  h4 {[%clk 0:00:11]} 58. Bb3 {[%clk 0:00:07]}  Kb7 {[%clk 0:00:06]} 59. a4 {[%clk 0:00:07]}  Ra8 {[%clk 0:00:06]} 60. Kb2 {[%clk 0:00:07]}  Rh8 {[%clk 0:00:06]} 61. a5 {[%clk 0:00:06]}  h3 {[%clk 0:00:07]} 62. gxh3 {[%clk 0:00:05]}  Rhxh3 {[%clk 0:00:06]} 63. Rxh3 {[%clk 0:00:05]}  Rxh3 {[%clk 0:00:06]} 64. Qc2 {[%clk 0:00:05]}  Rh7 {[%clk 0:00:05]} 65. a6+ {[%clk 0:00:05]}  Kc8 {[%clk 0:00:04]} 66. Qc6 {[%clk 0:00:05]}  Qg1 {[%clk 0:00:02]} 67. Rc2 {[%clk 0:00:05]}  Qd4+ {[%clk 0:00:01]} 68. Ka2 {[%clk 0:00:05]}  Qxb4 {[%clk 0:00:00]} 69. Qxb6 {[%clk 0:00:05]} 1-0


[Site "https://www.chess.com"]

[Event "Titled Tuesday Blitz June 27 Late 2023"]
[White "Palencia Morales, Wilson Guillermo"]
[Black "Bolourchifard, Farzad"]
[WhiteFideId "4401859"]
[BlackFideId "12510084"]
[WhiteElo "2572"]
[BlackElo "2685"]
[Result "0-1"]
[Round "11"]
[TimeControl "180+2"]
[Date "2023.06.27"]
[WhiteClock "0:00:02"]
[BlackClock "0:00:22"]
[Board "34"]

1. d4 {[%clk 0:03:00]}  Nf6 {[%clk 0:02:58]} 2. c4 {[%clk 0:03:00]}  e6 {[%clk 0:02:59]} 3. Nf3 {[%clk 0:03:01]}  d5 {[%clk 0:02:59]} 4. Nc3 {[%clk 0:03:00]}  Be7 {[%clk 0:02:59]} 5. Bg5 {[%clk 0:03:01]}  O-O {[%clk 0:02:58]} 6. e3 {[%clk 0:03:00]}  Nbd7 {[%clk 0:02:58]} 7. Qc2 {[%clk 0:03:00]}  c6 {[%clk 0:02:58]} 8. O-O-O {[%clk 0:02:59]}  a6 {[%clk 0:02:59]} 9. h4 {[%clk 0:02:59]}  b5 {[%clk 0:02:55]} 10. c5 {[%clk 0:02:56]}  Ng4 {[%clk 0:02:50]} 11. Bd3 {[%clk 0:02:51]}  h6 {[%clk 0:02:41]} 12. Bf4 {[%clk 0:02:50]}  e5 {[%clk 0:02:35]} 13. Bf5 {[%clk 0:02:37]}  Nxf2 {[%clk 0:01:59]} 14. Qxf2 {[%clk 0:02:05]}  exf4 {[%clk 0:01:58]} 15. exf4 {[%clk 0:02:00]}  Nf6 {[%clk 0:01:54]} 16. Bxc8 {[%clk 0:01:58]}  Qxc8 {[%clk 0:01:54]} 17. Ne5 {[%clk 0:01:58]}  b4 {[%clk 0:01:39]} 18. Na4 {[%clk 0:01:54]}  Ne4 {[%clk 0:01:33]} 19. Qf3 {[%clk 0:01:52]}  Bd8 {[%clk 0:01:24]} 20. g4 {[%clk 0:01:32]}  f6 {[%clk 0:01:12]} 21. Ng6 {[%clk 0:01:25]}  Rf7 {[%clk 0:01:10]} 22. Rhg1 {[%clk 0:01:20]}  Qb7 {[%clk 0:01:01]} 23. b3 {[%clk 0:01:14]}  Bc7 {[%clk 0:00:53]} 24. Kb2 {[%clk 0:01:02]}  Qc8 {[%clk 0:00:49]} 25. f5 {[%clk 0:00:59]}  Qd7 {[%clk 0:00:44]} 26. Nf4 {[%clk 0:00:56]}  Bxf4 {[%clk 0:00:42]} 27. Qxf4 {[%clk 0:00:54]}  Re8 {[%clk 0:00:43]} 28. Rde1 {[%clk 0:00:37]}  Rfe7 {[%clk 0:00:32]} 29. Re3 {[%clk 0:00:29]}  Qb7 {[%clk 0:00:24]} 30. Rge1 {[%clk 0:00:25]}  Qb5 {[%clk 0:00:20]} 31. Qf1 {[%clk 0:00:12]}  Qxf1 {[%clk 0:00:19]} 32. Rxf1 {[%clk 0:00:12]}  Nxc5 {[%clk 0:00:20]} 33. Rxe7 {[%clk 0:00:10]}  Nxa4+ {[%clk 0:00:20]} 34. bxa4 {[%clk 0:00:10]}  Rxe7 {[%clk 0:00:21]} 35. Rc1 {[%clk 0:00:10]}  Re4 {[%clk 0:00:18]} 36. Rxc6 {[%clk 0:00:10]}  Rxd4 {[%clk 0:00:17]} 37. Rxa6 {[%clk 0:00:11]}  Rxg4 {[%clk 0:00:17]} 38. Rd6 {[%clk 0:00:10]}  Rxh4 {[%clk 0:00:16]} 39. a5 {[%clk 0:00:10]}  Rh3 {[%clk 0:00:17]} 40. Rxd5 {[%clk 0:00:04]}  Ra3 {[%clk 0:00:18]} 41. Rb5 {[%clk 0:00:04]}  h5 {[%clk 0:00:18]} 42. Rxb4 {[%clk 0:00:01]}  Rxa5 {[%clk 0:00:18]} 43. Rf4 {[%clk 0:00:02]}  Kh7 {[%clk 0:00:18]} 44. a4 {[%clk 0:00:02]}  Kh6 {[%clk 0:00:19]} 45. Kb3 {[%clk 0:00:02]}  Kg5 {[%clk 0:00:19]} 46. Rf1 {[%clk 0:00:02]}  h4 {[%clk 0:00:20]} 47. Rg1+ {[%clk 0:00:01]}  Kh6 {[%clk 0:00:20]} 48. Rg4 {[%clk 0:00:01]}  Rxf5 {[%clk 0:00:17]} 49. Rxh4+ {[%clk 0:00:02]}  Kg5 {[%clk 0:00:18]} 50. Rc4 {[%clk 0:00:03]}  Ra5 {[%clk 0:00:18]} 51. Kb4 {[%clk 0:00:03]}  Ra8 {[%clk 0:00:19]} 52. Rc5+ {[%clk 0:00:03]}  f5 {[%clk 0:00:19]} 53. a5 {[%clk 0:00:04]}  Kg4 {[%clk 0:00:20]} 54. Rc7 {[%clk 0:00:04]}  g5 {[%clk 0:00:20]} 55. Rf7 {[%clk 0:00:04]}  f4 {[%clk 0:00:21]} 56. Kb5 {[%clk 0:00:04]}  Kf3 {[%clk 0:00:21]} 57. Kb6 {[%clk 0:00:05]}  g4 {[%clk 0:00:22]} 58. Ra7 {[%clk 0:00:05]}  Rg8 {[%clk 0:00:21]} 59. Rc7 {[%clk 0:00:05]}  g3 {[%clk 0:00:21]} 60. a6 {[%clk 0:00:05]}  g2 {[%clk 0:00:20]} 61. Rc1 {[%clk 0:00:05]}  g1=Q+ {[%clk 0:00:20]} 62. Rxg1 {[%clk 0:00:05]}  Rxg1 {[%clk 0:00:21]} 63. a7 {[%clk 0:00:02]}  Ra1 {[%clk 0:00:22]} 0-1


[Site "https://www.chess.com"]

[Event "Titled Tuesday Blitz June 27 Late 2023"]
[White "Stoleriu, George"]
[Black "JackRodgers"]
[WhiteFideId "1227505"]
[WhiteElo "2674"]
[BlackElo "2571"]
[Result "1/2-1/2"]
[Round "11"]
[TimeControl "180+2"]
[Date "2023.06.27"]
[WhiteClock "0:00:27"]
[BlackClock "0:00:36"]
[Board "35"]

1. e4 {[%clk 0:02:57]}  c5 {[%clk 0:03:00]} 2. Nc3 {[%clk 0:02:56]}  g6 {[%clk 0:03:00]} 3. d4 {[%clk 0:02:56]}  cxd4 {[%clk 0:02:59]} 4. Qxd4 {[%clk 0:02:57]}  Nf6 {[%clk 0:03:00]} 5. Nf3 {[%clk 0:02:57]}  Nc6 {[%clk 0:03:00]} 6. Qa4 {[%clk 0:02:52]}  d6 {[%clk 0:03:00]} 7. e5 {[%clk 0:02:50]}  dxe5 {[%clk 0:03:01]} 8. Nxe5 {[%clk 0:02:50]}  Bg7 {[%clk 0:03:01]} 9. Bb5 {[%clk 0:02:49]}  O-O {[%clk 0:02:56]} 10. Nxc6 {[%clk 0:02:48]}  bxc6 {[%clk 0:02:56]} 11. Bxc6 {[%clk 0:02:49]}  Bd7 {[%clk 0:02:48]} 12. Bxd7 {[%clk 0:02:49]}  Nxd7 {[%clk 0:02:48]} 13. Bd2 {[%clk 0:02:49]}  Nb6 {[%clk 0:02:43]} 14. Qf4 {[%clk 0:02:46]}  e5 {[%clk 0:02:37]} 15. Qg5 {[%clk 0:02:43]}  Bf6 {[%clk 0:02:30]} 16. Qh6 {[%clk 0:02:42]}  Nc4 {[%clk 0:02:30]} 17. Bc1 {[%clk 0:02:09]}  Rb8 {[%clk 0:02:22]} 18. O-O {[%clk 0:02:03]}  Nxb2 {[%clk 0:02:22]} 19. Ne4 {[%clk 0:01:57]}  Bg7 {[%clk 0:02:21]} 20. Qh3 {[%clk 0:01:52]}  Nc4 {[%clk 0:02:11]} 21. Bh6 {[%clk 0:01:46]}  Qc8 {[%clk 0:02:10]} 22. Qh4 {[%clk 0:01:39]}  Qd8 {[%clk 0:02:06]} 23. Qh3 {[%clk 0:01:36]}  Qc8 {[%clk 0:02:06]} 24. Qh4 {[%clk 0:01:36]}  Qd8 {[%clk 0:02:01]} 25. Bg5 {[%clk 0:01:36]}  f6 {[%clk 0:01:52]} 26. Nxf6+ {[%clk 0:01:30]}  Bxf6 {[%clk 0:01:53]} 27. Qxc4+ {[%clk 0:01:30]}  Kg7 {[%clk 0:01:53]} 28. Be3 {[%clk 0:01:28]}  Rc8 {[%clk 0:01:50]} 29. Qb3 {[%clk 0:01:26]}  Rf7 {[%clk 0:01:44]} 30. Rfd1 {[%clk 0:01:25]}  Qc7 {[%clk 0:01:44]} 31. Rd2 {[%clk 0:01:22]}  e4 {[%clk 0:01:37]} 32. Rad1 {[%clk 0:01:16]}  a5 {[%clk 0:01:30]} 33. Bb6 {[%clk 0:01:06]}  Qf4 {[%clk 0:01:12]} 34. Rd7 {[%clk 0:00:55]}  Rf8 {[%clk 0:01:00]} 35. Bc5 {[%clk 0:00:52]}  Be7 {[%clk 0:00:48]} 36. g3 {[%clk 0:00:30]}  Qg5 {[%clk 0:00:21]} 37. Be3 {[%clk 0:00:18]}  Qf5 {[%clk 0:00:19]} 38. Qc3+ {[%clk 0:00:17]}  Bf6 {[%clk 0:00:17]} 39. Rxf7+ {[%clk 0:00:18]}  Rxf7 {[%clk 0:00:17]} 40. Qd2 {[%clk 0:00:18]}  h5 {[%clk 0:00:14]} 41. Qd5 {[%clk 0:00:18]}  Bc3 {[%clk 0:00:09]} 42. Qxf5 {[%clk 0:00:15]}  Rxf5 {[%clk 0:00:10]} 43. Rd7+ {[%clk 0:00:15]}  Kf8 {[%clk 0:00:08]} 44. Ra7 {[%clk 0:00:15]}  Rb5 {[%clk 0:00:08]} 45. Kg2 {[%clk 0:00:14]}  Rb2 {[%clk 0:00:08]} 46. Bh6+ {[%clk 0:00:11]}  Kg8 {[%clk 0:00:07]} 47. Re7 {[%clk 0:00:11]}  Rxa2 {[%clk 0:00:06]} 48. Rxe4 {[%clk 0:00:11]}  Rxc2 {[%clk 0:00:06]} 49. Rc4 {[%clk 0:00:12]}  Kf7 {[%clk 0:00:03]} 50. Be3 {[%clk 0:00:12]}  a4 {[%clk 0:00:02]} 51. Bd4 {[%clk 0:00:11]}  a3 {[%clk 0:00:02]} 52. Rxc3 {[%clk 0:00:11]}  Ra2 {[%clk 0:00:01]} 53. Bc5 {[%clk 0:00:10]}  Ke6 {[%clk 0:00:02]} 54. Rxa3 {[%clk 0:00:10]}  Rc2 {[%clk 0:00:03]} 55. Be3 {[%clk 0:00:10]}  Rc6 {[%clk 0:00:04]} 56. Ra5 {[%clk 0:00:10]}  Kf7 {[%clk 0:00:04]} 57. Rb5 {[%clk 0:00:11]}  Rc2 {[%clk 0:00:04]} 58. h3 {[%clk 0:00:10]}  Rc7 {[%clk 0:00:04]} 59. g4 {[%clk 0:00:10]}  hxg4 {[%clk 0:00:04]} 60. hxg4 {[%clk 0:00:11]}  Kg7 {[%clk 0:00:05]} 61. Kg3 {[%clk 0:00:12]}  Rf7 {[%clk 0:00:05]} 62. Rc5 {[%clk 0:00:11]}  Kh7 {[%clk 0:00:05]} 63. Bf4 {[%clk 0:00:12]}  Rf8 {[%clk 0:00:05]} 64. Rc7+ {[%clk 0:00:12]}  Kh8 {[%clk 0:00:05]} 65. Be5+ {[%clk 0:00:13]}  Kg8 {[%clk 0:00:06]} 66. Rg7+ {[%clk 0:00:13]}  Kh8 {[%clk 0:00:07]} 67. Rf7+ {[%clk 0:00:12]}  Kg8 {[%clk 0:00:07]} 68. Rxf8+ {[%clk 0:00:13]}  Kxf8 {[%clk 0:00:08]} 69. Kh4 {[%clk 0:00:14]}  Kf7 {[%clk 0:00:09]} 70. Kg5 {[%clk 0:00:15]}  Ke6 {[%clk 0:00:10]} 71. f4 {[%clk 0:00:15]}  Kf7 {[%clk 0:00:10]} 72. Kh6 {[%clk 0:00:15]}  g5 {[%clk 0:00:09]} 73. Kxg5 {[%clk 0:00:16]}  Kg8 {[%clk 0:00:10]} 74. Kf6 {[%clk 0:00:16]}  Kh7 {[%clk 0:00:11]} 75. g5 {[%clk 0:00:17]}  Kg8 {[%clk 0:00:11]} 76. f5 {[%clk 0:00:17]}  Kh7 {[%clk 0:00:12]} 77. g6+ {[%clk 0:00:18]}  Kg8 {[%clk 0:00:13]} 78. Kg5 {[%clk 0:00:18]}  Kf8 {[%clk 0:00:14]} 79. Bf4 {[%clk 0:00:18]}  Kg8 {[%clk 0:00:14]} 80. Bg3 {[%clk 0:00:19]}  Kg7 {[%clk 0:00:15]} 81. Bh2 {[%clk 0:00:20]}  Kg8 {[%clk 0:00:16]} 82. Bg1 {[%clk 0:00:21]}  Kf8 {[%clk 0:00:17]} 83. Bf2 {[%clk 0:00:22]}  Kg8 {[%clk 0:00:18]} 84. Be1 {[%clk 0:00:23]}  Kg7 {[%clk 0:00:19]} 85. Bd2 {[%clk 0:00:24]}  Kg8 {[%clk 0:00:20]} 86. Bc1 {[%clk 0:00:25]}  Kf8 {[%clk 0:00:21]} 87. Bb2 {[%clk 0:00:25]}  Kg8 {[%clk 0:00:22]} 88. Kh6 {[%clk 0:00:26]}  Kf8 {[%clk 0:00:22]} 89. Kh7 {[%clk 0:00:26]}  Ke7 {[%clk 0:00:23]} 90. f6+ {[%clk 0:00:27]}  Kd6 {[%clk 0:00:23]} 91. f7 {[%clk 0:00:27]}  Kd5 {[%clk 0:00:24]} 92. f8=Q {[%clk 0:00:27]}  Kc4 {[%clk 0:00:25]} 93. g7 {[%clk 0:00:27]}  Kb3 {[%clk 0:00:26]} 94. g8=Q+ {[%clk 0:00:27]}  Kc2 {[%clk 0:00:27]} 95. Qg2+ {[%clk 0:00:27]}  Kd3 {[%clk 0:00:28]} 96. Qff1+ {[%clk 0:00:27]}  Ke3 {[%clk 0:00:27]} 97. Bd4+ {[%clk 0:00:27]}  Kxd4 {[%clk 0:00:28]} 98. Qd1+ {[%clk 0:00:27]}  Ke5 {[%clk 0:00:29]} 99. Qge2+ {[%clk 0:00:27]}  Kf4 {[%clk 0:00:30]} 100. Qdf1+ {[%clk 0:00:27]}  Kg5 {[%clk 0:00:30]} 101. Qeg2+ {[%clk 0:00:27]}  Kh4 {[%clk 0:00:31]} 102. Qfg1 {[%clk 0:00:27]}  Kh5 {[%clk 0:00:31]} 103. Kg7 {[%clk 0:00:28]}  Kh4 {[%clk 0:00:32]} 104. Kf6 {[%clk 0:00:28]}  Kh5 {[%clk 0:00:33]} 105. Kf5 {[%clk 0:00:29]}  Kh4 {[%clk 0:00:34]} 106. Kf4 {[%clk 0:00:30]}  Kh5 {[%clk 0:00:35]} 107. Qg8 {[%clk 0:00:29]}  Kh6 {[%clk 0:00:36]} 108. Kg4 {[%clk 0:00:27]} 1/2-1/2


[Site "https://www.chess.com"]

[Event "Titled Tuesday Blitz June 27 Late 2023"]
[White "Golubev, Mikhail"]
[Black "Ashraf, Artin"]
[WhiteFideId "14100983"]
[BlackFideId "22514805"]
[WhiteElo "2563"]
[BlackElo "2655"]
[Result "0-1"]
[Round "11"]
[TimeControl "180+2"]
[Date "2023.06.27"]
[WhiteClock "0:00:12"]
[BlackClock "0:00:06"]
[Board "36"]

1. e4 {[%clk 0:02:57]}  c5 {[%clk 0:02:59]} 2. Nf3 {[%clk 0:02:56]}  d6 {[%clk 0:03:00]} 3. d4 {[%clk 0:02:57]}  cxd4 {[%clk 0:03:00]} 4. Nxd4 {[%clk 0:02:57]}  Nf6 {[%clk 0:03:01]} 5. Nc3 {[%clk 0:02:57]}  a6 {[%clk 0:03:02]} 6. Bc4 {[%clk 0:02:57]}  e6 {[%clk 0:03:00]} 7. Bb3 {[%clk 0:02:56]}  b5 {[%clk 0:03:00]} 8. O-O {[%clk 0:02:55]}  Be7 {[%clk 0:02:55]} 9. Qf3 {[%clk 0:02:54]}  Qb6 {[%clk 0:02:54]} 10. Be3 {[%clk 0:02:54]}  Qb7 {[%clk 0:02:52]} 11. Qg3 {[%clk 0:02:54]}  b4 {[%clk 0:02:44]} 12. Na4 {[%clk 0:02:53]}  Nbd7 {[%clk 0:02:44]} 13. f3 {[%clk 0:02:51]}  O-O {[%clk 0:02:39]} 14. Rac1 {[%clk 0:02:51]}  a5 {[%clk 0:02:07]} 15. c3 {[%clk 0:02:39]}  Nc5 {[%clk 0:02:06]} 16. cxb4 {[%clk 0:02:24]}  Nxa4 {[%clk 0:01:39]} 17. Bxa4 {[%clk 0:02:21]}  Qxb4 {[%clk 0:01:39]} 18. Nc6 {[%clk 0:02:11]}  Qxa4 {[%clk 0:01:38]} 19. Nxe7+ {[%clk 0:02:10]}  Kh8 {[%clk 0:01:39]} 20. Qxd6 {[%clk 0:01:48]}  Ba6 {[%clk 0:01:31]} 21. Rfd1 {[%clk 0:01:39]}  Qxa2 {[%clk 0:01:26]} 22. Qe5 {[%clk 0:01:06]}  Qb3 {[%clk 0:01:17]} 23. Bd4 {[%clk 0:01:02]}  Ne8 {[%clk 0:01:02]} 24. Qc5 {[%clk 0:00:58]}  Nf6 {[%clk 0:00:54]} 25. Bxf6 {[%clk 0:00:28]}  gxf6 {[%clk 0:00:55]} 26. Qd4 {[%clk 0:00:28]}  Kg7 {[%clk 0:00:43]} 27. e5 {[%clk 0:00:28]}  fxe5 {[%clk 0:00:08]} 28. Qxe5+ {[%clk 0:00:28]}  f6 {[%clk 0:00:08]} 29. Qg3+ {[%clk 0:00:26]}  Kf7 {[%clk 0:00:08]} 30. Rd7 {[%clk 0:00:12]}  Qe3+ {[%clk 0:00:06]} 0-1


[Site "https://www.chess.com"]

[Event "Titled Tuesday Blitz June 27 Late 2023"]
[White "Pert, Richard G"]
[Black "Vlassov, Nikolai"]
[WhiteFideId "404748"]
[BlackFideId "4103360"]
[WhiteElo "2553"]
[BlackElo "2638"]
[Result "1-0"]
[Round "11"]
[TimeControl "180+2"]
[Date "2023.06.27"]
[WhiteClock "0:00:08"]
[BlackClock "0:00:00"]
[Board "37"]

1. d4 {[%clk 0:03:00]}  Nf6 {[%clk 0:02:59]} 2. Nc3 {[%clk 0:03:00]}  d5 {[%clk 0:02:59]} 3. e4 {[%clk 0:03:01]}  dxe4 {[%clk 0:02:55]} 4. f3 {[%clk 0:03:00]}  c5 {[%clk 0:02:51]} 5. d5 {[%clk 0:02:54]}  e6 {[%clk 0:02:49]} 6. fxe4 {[%clk 0:02:54]}  exd5 {[%clk 0:02:49]} 7. exd5 {[%clk 0:02:54]}  Bd6 {[%clk 0:02:48]} 8. Nf3 {[%clk 0:02:45]}  O-O {[%clk 0:02:47]} 9. Bg5 {[%clk 0:02:44]}  h6 {[%clk 0:02:43]} 10. Bh4 {[%clk 0:02:44]}  Bg4 {[%clk 0:02:38]} 11. Be2 {[%clk 0:02:43]}  Nbd7 {[%clk 0:02:38]} 12. Qd2 {[%clk 0:02:43]}  a6 {[%clk 0:02:36]} 13. O-O-O {[%clk 0:02:41]}  Qc7 {[%clk 0:02:35]} 14. Kb1 {[%clk 0:02:41]}  b5 {[%clk 0:02:30]} 15. h3 {[%clk 0:02:39]}  Bf5 {[%clk 0:02:26]} 16. g4 {[%clk 0:02:34]}  Bg6 {[%clk 0:02:23]} 17. g5 {[%clk 0:02:33]}  hxg5 {[%clk 0:01:50]} 18. Bxg5 {[%clk 0:02:22]}  b4 {[%clk 0:01:47]} 19. Na4 {[%clk 0:02:22]}  c4 {[%clk 0:01:42]} 20. Bxf6 {[%clk 0:02:01]}  Nxf6 {[%clk 0:01:42]} 21. Nh4 {[%clk 0:02:01]}  c3 {[%clk 0:01:13]} 22. Qd4 {[%clk 0:01:46]}  Be5 {[%clk 0:01:02]} 23. Qb6 {[%clk 0:01:38]}  Be4 {[%clk 0:00:39]} 24. Bf3 {[%clk 0:01:29]}  cxb2 {[%clk 0:00:33]} 25. Qxc7 {[%clk 0:01:27]}  Bxc7 {[%clk 0:00:33]} 26. d6 {[%clk 0:01:26]}  Bd8 {[%clk 0:00:30]} 27. Kxb2 {[%clk 0:01:09]}  Rc8 {[%clk 0:00:29]} 28. Bxe4 {[%clk 0:00:56]}  Nxe4 {[%clk 0:00:29]} 29. Nf5 {[%clk 0:00:57]}  Bf6+ {[%clk 0:00:29]} 30. Kb1 {[%clk 0:00:56]}  g6 {[%clk 0:00:23]} 31. Ne7+ {[%clk 0:00:51]}  Bxe7 {[%clk 0:00:23]} 32. dxe7 {[%clk 0:00:51]}  Rfe8 {[%clk 0:00:24]} 33. Rd7 {[%clk 0:00:50]}  f5 {[%clk 0:00:20]} 34. Nb6 {[%clk 0:00:33]}  Rc6 {[%clk 0:00:19]} 35. Nd5 {[%clk 0:00:31]}  Kf7 {[%clk 0:00:20]} 36. Rd1 {[%clk 0:00:19]}  Nc3+ {[%clk 0:00:19]} 37. Nxc3 {[%clk 0:00:18]}  bxc3 {[%clk 0:00:20]} 38. Re1 {[%clk 0:00:18]}  Re6 {[%clk 0:00:20]} 39. Rxe6 {[%clk 0:00:17]}  Kxe6 {[%clk 0:00:20]} 40. Ra7 {[%clk 0:00:16]}  Rxe7 {[%clk 0:00:19]} 41. Rxa6+ {[%clk 0:00:16]}  Kf7 {[%clk 0:00:19]} 42. a4 {[%clk 0:00:14]}  Rb7+ {[%clk 0:00:17]} 43. Kc1 {[%clk 0:00:13]}  Rb2 {[%clk 0:00:17]} 44. Rc6 {[%clk 0:00:13]}  Ra2 {[%clk 0:00:18]} 45. Rxc3 {[%clk 0:00:12]}  Rxa4 {[%clk 0:00:18]} 46. Kd2 {[%clk 0:00:13]}  Kf6 {[%clk 0:00:15]} 47. Rd3 {[%clk 0:00:11]}  Kg5 {[%clk 0:00:16]} 48. Kc3 {[%clk 0:00:10]}  Kh4 {[%clk 0:00:15]} 49. Kb3 {[%clk 0:00:11]}  Ra1 {[%clk 0:00:13]} 50. c4 {[%clk 0:00:11]}  Rb1+ {[%clk 0:00:04]} 51. Ka4 {[%clk 0:00:10]}  g5 {[%clk 0:00:01]} 52. c5 {[%clk 0:00:10]}  g4 {[%clk 0:00:01]} 53. hxg4 {[%clk 0:00:09]}  fxg4 {[%clk 0:00:02]} 54. c6 {[%clk 0:00:09]}  g3 {[%clk 0:00:00]} 55. Rd2 {[%clk 0:00:08]} 1-0


[Site "https://www.chess.com"]

[Event "Titled Tuesday Blitz June 27 Late 2023"]
[White "Perez, Maximiliano"]
[Black "Veiga, Jose Francisco R P Neves"]
[WhiteFideId "117234"]
[BlackFideId "1930087"]
[WhiteElo "2538"]
[BlackElo "2665"]
[Result "0-1"]
[Round "11"]
[TimeControl "180+2"]
[Date "2023.06.27"]
[WhiteClock "0:00:00"]
[BlackClock "0:00:49"]
[Board "42"]

1. e4 {[%clk 0:03:00]}  Nc6 {[%clk 0:03:00]} 2. Nf3 {[%clk 0:02:57]}  d6 {[%clk 0:02:59]} 3. d4 {[%clk 0:02:55]}  Nf6 {[%clk 0:02:59]} 4. Nc3 {[%clk 0:02:55]}  g6 {[%clk 0:02:59]} 5. d5 {[%clk 0:02:51]}  Nb8 {[%clk 0:02:59]} 6. h3 {[%clk 0:02:50]}  Bg7 {[%clk 0:03:00]} 7. Be2 {[%clk 0:02:48]}  O-O {[%clk 0:03:00]} 8. O-O {[%clk 0:02:49]}  a5 {[%clk 0:03:00]} 9. a4 {[%clk 0:02:46]}  c6 {[%clk 0:03:00]} 10. Re1 {[%clk 0:02:45]}  Na6 {[%clk 0:03:00]} 11. Bf1 {[%clk 0:02:30]}  Nb4 {[%clk 0:03:00]} 12. Bg5 {[%clk 0:02:22]}  Qc7 {[%clk 0:02:51]} 13. Qd2 {[%clk 0:02:20]}  e6 {[%clk 0:02:49]} 14. dxe6 {[%clk 0:02:18]}  Bxe6 {[%clk 0:02:50]} 15. Rad1 {[%clk 0:02:17]}  d5 {[%clk 0:02:47]} 16. Bf4 {[%clk 0:01:47]}  Qb6 {[%clk 0:02:36]} 17. e5 {[%clk 0:01:29]}  Nd7 {[%clk 0:02:33]} 18. Nd4 {[%clk 0:01:26]}  Rae8 {[%clk 0:02:31]} 19. Bg3 {[%clk 0:01:20]}  Nc5 {[%clk 0:02:24]} 20. Kh2 {[%clk 0:01:17]}  Bc8 {[%clk 0:02:23]} 21. f4 {[%clk 0:01:17]}  f6 {[%clk 0:02:20]} 22. exf6 {[%clk 0:01:09]}  Bxf6 {[%clk 0:02:20]} 23. Rxe8 {[%clk 0:01:09]}  Rxe8 {[%clk 0:02:21]} 24. Nf3 {[%clk 0:01:04]}  Ne4 {[%clk 0:02:01]} 25. Nxe4 {[%clk 0:01:03]}  dxe4 {[%clk 0:02:02]} 26. Ne5 {[%clk 0:01:04]}  Bf5 {[%clk 0:01:55]} 27. Bc4+ {[%clk 0:01:03]}  Kg7 {[%clk 0:01:54]} 28. Nd7 {[%clk 0:00:57]}  Bxd7 {[%clk 0:01:48]} 29. Qxd7+ {[%clk 0:00:57]}  Re7 {[%clk 0:01:48]} 30. Qc8 {[%clk 0:00:53]}  Nd5 {[%clk 0:01:32]} 31. Rxd5 {[%clk 0:00:36]}  cxd5 {[%clk 0:01:33]} 32. Bxd5 {[%clk 0:00:37]}  Qd6 {[%clk 0:01:16]} 33. Qg8+ {[%clk 0:00:32]}  Kh6 {[%clk 0:01:16]} 34. c4 {[%clk 0:00:13]}  Rg7 {[%clk 0:01:02]} 35. Qc8 {[%clk 0:00:10]}  e3 {[%clk 0:00:59]} 36. Qg4 {[%clk 0:00:08]}  Re7 {[%clk 0:00:53]} 37. f5 {[%clk 0:00:07]}  Be5 {[%clk 0:00:52]} 38. Qh4+ {[%clk 0:00:06]}  Kg7 {[%clk 0:00:52]} 39. f6+ {[%clk 0:00:02]}  Qxf6 {[%clk 0:00:51]} 40. Bxe5 {[%clk 0:00:00]}  Qxe5+ {[%clk 0:00:49]} 0-1


[Site "https://www.chess.com"]